fUSD/lending_fUSD_20250519
["ID","MTS","AMOUNT","RATE_DAILY","PERIOD"]
[361600164,1747632657037,-400.0,0.00013808,2]
[361600165,1747632657048,-182.318101,0.00013808,2]
[361600166,1747632657059,-182.318101,0.00013808,2]
[361600167,1747632657070,-182.318101,0.00013808,2]
[361600168,1747632657082,-182.318101,0.00013808,2]
[361600169,1747632657094,-182.318101,0.00013808,2]
[361600170,1747632657108,-400.0,0.00013808,2]
[361600171,1747632657119,-400.0,0.00013808,2]
[361600172,1747632657130,-400.0,0.00013808,2]
[361600173,1747632657141,-400.0,0.00013808,2]
[361600174,1747632657153,-400.0,0.00013808,2]
[361600175,1747632657164,-400.0,0.00013808,2]
[361600176,1747632657187,-400.0,0.00013808,2]
[361600177,1747632657200,-873.68,0.00013808,2]
[361600178,1747632657421,-524.99,0.00013808,2]
[361600179,1747632657443,-511.16243371,0.00013808,2]
[361600180,1747632657456,-400.0,0.00013808,2]
[361600181,1747632657468,-922.29,0.00013808,2]
[361600182,1747632657480,-151.0,0.00013808,2]
[361600183,1747632657492,-1153.54,0.00013808,2]
[361600184,1747632657510,-400.0,0.00013808,2]
[361600185,1747632657521,-151.0,0.00013808,2]
[361600186,1747632657532,-400.0,0.00013808,2]
[361600187,1747632657542,-151.0,0.00013808,2]
[361600188,1747632657554,-151.0,0.00013808,2]
[361600189,1747632657566,-400.0,0.00013808,2]
[361600190,1747632657577,-151.0,0.00013808,2]
[361600191,1747632657589,-151.0,0.00013808,2]
[361600192,1747632657728,-400.0,0.00013808,2]
[361600193,1747632657751,-400.0,0.00013808,2]
[361600194,1747632657762,-814.18,0.00013808,2]
[361600195,1747632657774,-400.0,0.00013808,2]
[361600196,1747632657786,-400.0,0.00013808,2]
[361600197,1747632657797,-400.0,0.00013808,2]
[361600198,1747632657808,-439.47,0.00013808,2]
[361600199,1747632657819,-400.0,0.00013808,2]
[361600200,1747632657833,-400.0,0.00013808,2]
[361600201,1747632657844,-163.8242143,0.00013808,2]
[361600202,1747632657856,-1201.09,0.00013808,2]
[361600203,1747632657867,-462.25791582,0.00013808,2]
[361600204,1747632657880,-527.63,0.00013808,2]
[361600205,1747632657891,-607.01,0.00013808,2]
[361600206,1747632657902,-1808.06,0.00013808,2]
[361600207,1747632657914,-400.0,0.00013808,2]
[361600208,1747632657931,-465.29,0.00013808,2]
[361600209,1747632657943,-400.0,0.00013808,2]
[361600210,1747632657955,-798.22,0.00013808,2]
[361600211,1747632657969,-461.31483318,0.00013808,2]
[361600212,1747632657981,-400.0,0.00013808,2]
[361600213,1747632657993,-400.0,0.00013808,2]
[361600214,1747632658005,-445.79697911,0.00013808,2]
[361600215,1747632658016,-400.0,0.00013808,2]
[361600216,1747632658028,-400.0,0.00013808,2]
[361600217,1747632658050,-400.0,0.00013808,2]
[361600218,1747632658061,-400.0,0.00013808,2]
[361600219,1747632658072,-1039.31,0.00013808,2]
[361600220,1747632658084,-598.22,0.00013808,2]
[361600221,1747632658095,-400.0,0.00013808,2]
[361600222,1747632658107,-400.0,0.00013808,2]
[361600223,1747632658119,-400.0,0.00013808,2]
[361600224,1747632658132,-978.05,0.00013808,2]
[361600225,1747632658149,-400.0,0.00013808,2]
[361600226,1747632658161,-431.09,0.00013808,2]
[361600227,1747632658172,-439.32,0.00013808,2]
[361600228,1747632658183,-924.39,0.00013808,2]
[361600229,1747632658195,-1523.15,0.00013808,2]
[361600230,1747632658207,-400.0,0.00013808,2]
[361600231,1747632658218,-651.47,0.00013808,2]
[361600232,1747632658230,-400.0,0.00013808,2]
[361600233,1747632658242,-400.0,0.00013808,2]
[361600234,1747632658254,-400.0,0.00013808,2]
[361600235,1747632658271,-449.89,0.00013808,2]
[361600236,1747632658283,-592.65,0.00013808,2]
[361600237,1747632658295,-400.0,0.00013808,2]
[361600238,1747632658309,-400.0,0.00013808,2]
[361600239,1747632658321,-151.0,0.00013808,2]
[361600240,1747632658332,-151.0,0.00013808,2]
[361600241,1747632658343,-151.0,0.00013808,2]
[361600242,1747632658357,-151.0,0.00013808,2]
[361600243,1747632658370,-901.81,0.00013808,2]
[361600244,1747632658381,-151.0,0.00013808,2]
[361600245,1747632658393,-400.0,0.00013808,2]
[361600246,1747632658405,-400.0,0.00013808,2]
[361600247,1747632658416,-400.0,0.00013808,2]
[361600248,1747632658447,-304.165739,0.00013808,2]
[361600249,1747632658462,-304.165739,0.00013808,2]
[361600250,1747632658473,-304.165739,0.00013808,2]
[361600251,1747632658486,-400.0,0.00013808,2]
[361600252,1747632658498,-762.3,0.00013808,2]
[361600253,1747632658510,-400.0,0.00013808,2]
[361600254,1747632658521,-400.0,0.00013808,2]
[361600255,1747632658533,-304.165739,0.00013808,2]
[361600256,1747632658545,-304.165739,0.00013808,2]
[361600257,1747632658557,-304.165739,0.00013808,2]
[361600258,1747632658568,-400.0,0.00013808,2]
[361600259,1747632658580,-400.0,0.00013808,2]
[361600260,1747632658592,-151.0,0.00013808,2]
[361600261,1747632658604,-151.0,0.00013808,2]
[361600262,1747632658615,-402.12,0.00013808,2]
[361600263,1747632658626,-400.0,0.00013808,2]
[361600264,1747632658638,-400.0,0.00013808,2]
[361600265,1747632658649,-400.0,0.00013808,2]
[361600266,1747632658661,-526.43,0.00013808,2]
[361600267,1747632658672,-938.36,0.00013808,2]
[361600268,1747632658685,-677.88,0.00013808,2]
[361600269,1747632658697,-432.17,0.00013808,2]
[361600270,1747632658709,-400.0,0.00013808,2]
[361600271,1747632658721,-400.0,0.00013808,2]
[361600272,1747632658732,-400.0,0.00013808,2]
[361600273,1747632658743,-400.0,0.00013808,2]
[361600274,1747632658755,-844.09,0.00013808,2]
[361600275,1747632658767,-400.0,0.00013808,2]
[361600276,1747632658780,-400.0,0.00013808,2]
[361600277,1747632658794,-429.47,0.00013808,2]
[361600278,1747632658806,-400.0,0.00013808,2]
[361600279,1747632658817,-444.43,0.00013808,2]
[361600280,1747632658829,-728.62,0.00013808,2]
[361600281,1747632658841,-400.0,0.00013808,2]
[361600282,1747632658852,-400.0,0.00013808,2]
[361600283,1747632658864,-559.32,0.00013808,2]
[361600284,1747632658877,-400.0,0.00013808,2]
[361600285,1747632658889,-717.68,0.00013808,2]
[361600286,1747632658900,-698.39,0.00013808,2]
[361600287,1747632658911,-400.0,0.00013808,2]
[361600288,1747632658928,-400.0,0.00013808,2]
[361600289,1747632658952,-601.23,0.00013808,2]
[361600290,1747632658965,-400.0,0.00013808,2]
[361600291,1747632658979,-400.0,0.00013808,2]
[361600292,1747632658990,-400.0,0.00013808,2]
[361600293,1747632659003,-770.9,0.00013808,2]
[361600294,1747632659037,-429.37,0.00013808,2]
[361600295,1747632659049,-400.0,0.00013808,2]
[361600296,1747632659061,-884.63,0.00013808,2]
[361600297,1747632659072,-823.05,0.00013808,2]
[361600298,1747632659083,-474.32,0.00013808,2]
[361600299,1747632659094,-852.03,0.00013808,2]
[361600300,1747632659105,-400.0,0.00013808,2]
[361600301,1747632659117,-455.4592995,0.00013808,2]
[361600302,1747632659128,-1054.47,0.00013808,2]
[361600303,1747632659139,-3801.569616,0.00013808,2]
[361600304,1747632659151,-400.0,0.00013808,2]
[361600305,1747632659163,-423.96,0.00013808,2]
[361600306,1747632659175,-3801.569616,0.00013808,2]
[361600307,1747632659187,-3801.569616,0.00013808,2]
[361600308,1747632659198,-400.0,0.00013808,2]
[361600309,1747632659210,-400.0,0.00013808,2]
[361600310,1747632659222,-400.0,0.00013808,2]
[361600311,1747632659233,-3801.569616,0.00013808,2]
[361600312,1747632659245,-3801.569616,0.00013808,2]
[361600313,1747632659256,-3801.569616,0.00013808,2]
[361600314,1747632659269,-400.0,0.00013808,2]
[361600315,1747632659280,-778.07,0.00013808,2]
[361600316,1747632659292,-644.5,0.00013808,2]
[361600317,1747632659304,-466.65,0.00013808,2]
[361600318,1747632659316,-1014.26,0.00013808,2]
[361600319,1747632659327,-350.0,0.00013808,2]
[361600320,1747632659338,-521.8,0.00013808,2]
[361600321,1747632659349,-400.0,0.00013808,2]
[361600322,1747632659361,-400.0,0.00013808,2]
[361600323,1747632659372,-583.5,0.00013808,2]
[361600324,1747632659383,-400.0,0.00013808,2]
[361600325,1747632659395,-1024.07,0.00013808,2]
[361600326,1747632659406,-400.0,0.00013808,2]
[361600327,1747632659417,-799.79,0.00013808,2]
[361600328,1747632659441,-400.0,0.00013808,2]
[361600329,1747632659452,-2220.31,0.00013808,2]
[361600330,1747632659465,-400.0,0.00013808,2]
[361600331,1747632659477,-955.45,0.00013808,2]
[361600332,1747632659489,-400.0,0.00013808,2]
[361600333,1747632659501,-473.57,0.00013808,2]
[361600334,1747632659512,-400.0,0.00013808,2]
[361600335,1747632659524,-694.39,0.00013808,2]
[361600336,1747632659535,-1793.26,0.00013808,2]
[361600337,1747632659547,-400.0,0.00013808,2]
[361600338,1747632659558,-1340.63,0.00013808,2]
[361600339,1747632659570,-11755.7,0.00013808,2]
[361600340,1747632659581,-400.0,0.00013808,2]
[361600341,1747632659592,-1101.32,0.00013808,2]
[361600342,1747632659603,-400.0,0.00013808,2]
[361600343,1747632659614,-645.52,0.00013808,2]
[361600344,1747632659626,-1915.01,0.00013808,2]
[361600345,1747632659637,-538.03,0.00013808,2]
[361600346,1747632659649,-590.23,0.00013808,2]
[361600347,1747632659659,-400.0,0.00013808,2]
[361600348,1747632659675,-400.0,0.00013808,2]
[361600349,1747632659689,-10420.67,0.00013808,2]
[361600350,1747632659703,-1652.89,0.00013808,2]
[361600351,1747632659716,-400.0,0.00013808,2]
[361600352,1747632659726,-400.0,0.00013808,2]
[361600353,1747632659737,-8111.4,0.00013808,2]
[361600354,1747632659749,-211.656872,0.00013808,2]
[361600355,1747632659760,-211.656872,0.00013808,2]
[361600356,1747632659771,-211.656872,0.00013808,2]
[361600357,1747632659784,-1160.13,0.00013808,2]
[361600358,1747632659795,-625.51,0.00013808,2]
[361600359,1747632659810,-522.22,0.00013808,2]
[361600360,1747632659821,-211.656872,0.00013808,2]
[361600361,1747632659833,-1745.9,0.00013808,2]
[361600362,1747632659844,-410.47,0.00013808,2]
[361600363,1747632659855,-211.656872,0.00013808,2]
[361600364,1747632659866,-211.656872,0.00013808,2]
[361600365,1747632659878,-406.94,0.00013808,2]
[361600366,1747632659889,-400.0,0.00013808,2]
[361600367,1747632659900,-1375.15,0.00013808,2]
[361600368,1747632659916,-406.72674275,0.00013808,2]
[361600369,1747632659935,-7582.01,0.00013808,2]
[361600370,1747632659947,-400.0,0.00013808,2]
[361600371,1747632659959,-1412.58,0.00013808,2]
[361600372,1747632659970,-1426.67,0.00013808,2]
[361600373,1747632659982,-400.0,0.00013808,2]
[361600374,1747632659993,-400.0,0.00013808,2]
[361600375,1747632660004,-958.02,0.00013808,2]
[361600376,1747632660220,-400.0,0.00013808,2]
[361600377,1747632660233,-608.84,0.00013808,2]
[361600378,1747632660245,-650.66,0.00013808,2]
[361600379,1747632660256,-789.53,0.00013808,2]
[361600380,1747632660272,-400.0,0.00013808,2]
[361600381,1747632660284,-880.15,0.00013808,2]
[361600382,1747632660296,-4043.73,0.00013808,2]
[361600383,1747632660310,-1790.28,0.00013808,2]
[361600384,1747632660322,-151.0,0.00013808,2]
[361600385,1747632660335,-1184.19,0.00013808,2]
[361600386,1747632660347,-151.0,0.00013808,2]
[361600387,1747632660361,-151.0,0.00013808,2]
[361600388,1747632660374,-601.840338,0.00013808,2]
[361600389,1747632660386,-430.6,0.00013808,2]
[361600390,1747632660398,-601.840338,0.00013808,2]
[361600391,1747632660409,-601.840338,0.00013808,2]
[361600392,1747632660425,-400.05,0.00013808,2]
[361600393,1747632660437,-404.44713037,0.00013808,2]
[361600394,1747632660449,-400.0,0.00013808,2]
[361600395,1747632660460,-400.0,0.00013808,2]
[361600396,1747632660471,-2602.49,0.00013808,2]
[361600397,1747632660483,-400.0,0.00013808,2]
[361600398,1747632660494,-601.840338,0.00013808,2]
[361600399,1747632660506,-1339.93,0.00013808,2]
[361600400,1747632660517,-3957.72,0.00013808,2]
[361600401,1747632660530,-601.840338,0.00013808,2]
[361600402,1747632660542,-601.840338,0.00013808,2]
[361600403,1747632660554,-825.43,0.00013808,2]
[361600404,1747632660566,-3380.46,0.00013808,2]
[361600405,1747632660577,-1193.9,0.00013808,2]
[361600406,1747632660589,-2680.33,0.00013808,2]
[361600407,1747632660600,-400.0,0.00013808,2]
[361600408,1747632660976,-6686.11,0.00013808,2]
[361600409,1747632660997,-151.0,0.00013808,2]
[361600410,1747632661010,-151.0,0.00013808,2]
[361600411,1747632661021,-400.0,0.00013808,2]
[361600412,1747632661033,-400.0,0.00013808,2]
[361600413,1747632661044,-628.77,0.00013808,2]
[361600414,1747632661057,-400.0,0.00013808,2]
[361600415,1747632661070,-560.46,0.00013808,2]
[361600416,1747632661082,-400.0,0.00013808,2]
[361600417,1747632661093,-1215.41,0.00013808,2]
[361600418,1747632661104,-7147.25,0.00013808,2]
[361600419,1747632661115,-597.77,0.00013808,2]
[361600420,1747632661126,-509.2,0.00013808,2]
[361600421,1747632661137,-400.0,0.00013808,2]
[361600422,1747632661149,-400.0,0.00013808,2]
[361600423,1747632661161,-400.0,0.00013808,2]
[361600424,1747632661178,-2485.01,0.00013808,2]
[361600425,1747632661191,-1236.32,0.00013808,2]
[361600426,1747632661202,-400.0,0.00013808,2]
[361600427,1747632661212,-400.0,0.00013808,2]
[361600428,1747632661223,-1124.42,0.00013808,2]
[361600429,1747632661234,-4117.72,0.00013808,2]
[361600430,1747632661245,-400.0,0.00013808,2]
[361600431,1747632661256,-1122.33,0.00013808,2]
[361600432,1747632661271,-475.78,0.00013808,2]
[361600433,1747632661282,-1138.78,0.00013808,2]
[361600434,1747632661293,-400.0,0.00013808,2]
[361600435,1747632661306,-1830.1,0.00013808,2]
[361600436,1747632661317,-400.0,0.00013808,2]
[361600437,1747632661329,-707.13,0.00013808,2]
[361600438,1747632661340,-400.0,0.00013808,2]
[361600439,1747632661354,-220.466464,0.00013808,2]
[361600440,1747632661366,-588.85,0.00013808,2]
[361600441,1747632661379,-563.39,0.00013808,2]
[361600442,1747632661391,-1041.24,0.00013808,2]
[361600443,1747632661403,-712.6,0.00013808,2]
[361600444,1747632661415,-1126.7,0.00013808,2]
[361600445,1747632661432,-1267.37,0.00013808,2]
[361600446,1747632661444,-684.32,0.00013808,2]
[361600447,1747632661455,-151.0,0.00013808,2]
[361600448,1747632661467,-151.0,0.00013808,2]
[361600449,1747632661479,-151.0,0.00013808,2]
[361600450,1747632661491,-7022.07,0.00013808,2]
[361600451,1747632661502,-1028.86,0.00013808,2]
[361600452,1747632661514,-902.36,0.00013808,2]
[361600453,1747632661526,-1160.06,0.00013808,2]
[361600454,1747632661537,-151.0,0.00013808,2]
[361600455,1747632661547,-210.440053,0.00013808,2]
[361600456,1747632661558,-151.0,0.00013808,2]
[361600457,1747632661570,-400.0,0.00013808,2]
[361600458,1747632661582,-151.0,0.00013808,2]
[361600459,1747632661593,-151.0,0.00013808,2]
[361600460,1747632661605,-161.85,0.00013808,2]
[361600461,1747632661617,-400.0,0.00013808,2]
[361600462,1747632661629,-402.69,0.00013808,2]
[361600463,1747632661640,-400.0,0.00013808,2]
[361600464,1747632661654,-907.41,0.00013808,2]
[361600465,1747632661667,-828.35,0.00013808,2]
[361600466,1747632661691,-3634.64,0.00013808,2]
[361600467,1747632661702,-1065.31,0.00013808,2]
[361600468,1747632661714,-578.53,0.00013808,2]
[361600469,1747632661727,-544.12,0.00013808,2]
[361600470,1747632661738,-446.86,0.00013808,2]
[361600471,1747632661749,-875.71,0.00013808,2]
[361600472,1747632661760,-803.92,0.00013808,2]
[361600473,1747632661771,-945.87,0.00013808,2]
[361600474,1747632661786,-2000.67,0.00013808,2]
[361600475,1747632661798,-1288.12,0.00013808,2]
[361600476,1747632661810,-400.0,0.00013808,2]
[361600477,1747632661821,-7274.79,0.00013808,2]
[361600478,1747632661833,-400.0,0.00013808,2]
[361600479,1747632661844,-400.0,0.00013808,2]
[361600480,1747632661856,-355.05958738,0.00013808,2]
[361600481,1747632661867,-404.16548153,0.00013808,2]
[361600482,1747632661880,-2342.6,0.00013808,2]
[361600483,1747632661892,-1446.94,0.00013808,2]
[361600484,1747632661903,-765.1,0.00013808,2]
[361600485,1747632661915,-400.0,0.00013808,2]
[361600486,1747632662144,-616.87,0.00013808,2]
[361600487,1747632662157,-151.0,0.00013808,2]
[361600488,1747632662169,-151.0,0.00013808,2]
[361600489,1747632662190,-151.0,0.00013808,2]
[361600490,1747632662202,-1552.26,0.00013808,2]
[361600491,1747632662213,-86921.44,0.00013808,2]
[361600492,1747632662225,-151.0,0.00013808,2]
[361600493,1747632662237,-1258.18,0.00013808,2]
[361600494,1747632662248,-342.04426382,0.00013808,2]
[361600495,1747632662263,-400.0,0.00013808,2]
[361600496,1747632662275,-9352.95,0.00013808,2]
[361600497,1747632662287,-400.0,0.00013808,2]
[361600498,1747632662299,-2405.03,0.00013808,2]
[361600499,1747632662314,-1501.92,0.00013808,2]
[361600500,1747632662326,-202.89894577,0.00013808,2]
[361600501,1747632662337,-9040.49477256,0.00013808,2]
[361600502,1747632662982,-526.00813225,0.00013808,2]
[361600503,1747632663862,-400.68946992,0.00013698,2]
[361600504,1747632663876,-162.79864967,0.00013698,2]
[361600505,1747632663899,-237.20135033,0.00013698,2]
[361600506,1747632663911,-421.91,0.00013698,2]
[361600507,1747632663939,-1441.35,0.00013698,2]
[361600508,1747632663955,-2703.90709519,0.00013808,2]
[361600509,1747632663973,-859.89,0.00013808,2]
[361600510,1747632663985,-3516.07,0.00013808,2]
[361600511,1747632663997,-703.23,0.00013808,2]
[361600512,1747632664008,-777.03,0.00013808,2]
[361600513,1747632664019,-890.98,0.00013808,2]
[361600514,1747632664031,-14479.74822451,0.00013808,2]
[361600515,1747632664051,-4385.17177549,0.00013808,2]
[361600516,1747632664063,-2298.21,0.00013808,2]
[361600517,1747632664079,-482.42,0.00013808,2]
[361600518,1747632664091,-400.0,0.00013808,2]
[361600519,1747632664104,-400.0,0.00013808,2]
[361600520,1747632664116,-1898.76,0.00013808,2]
[361600521,1747632664129,-635.54,0.00013808,2]
[361600522,1747632664141,-400.0,0.00013808,2]
[361600523,1747632664152,-496.69,0.00013808,2]
[361600524,1747632664166,-1917.39,0.00013808,2]
[361600525,1747632664199,-400.0,0.00013808,2]
[361600526,1747632664211,-400.0,0.00013808,2]
[361600527,1747632664223,-264.19349624,0.00013808,2]
[361600528,1747632664235,-400.0,0.00013808,2]
[361600529,1747632664246,-1418.33,0.00013808,2]
[361600530,1747632664260,-1347.95,0.00013808,2]
[361600531,1747632664274,-400.0,0.00013808,2]
[361600532,1747632664290,-632.61,0.00013808,2]
[361600533,1747632664304,-447.45,0.00013808,2]
[361600534,1747632664316,-2027.22,0.00013808,2]
[361600535,1747632664328,-837.76,0.00013808,2]
[361600536,1747632664342,-2552.56,0.00013808,2]
[361600537,1747632664355,-603.3,0.00013808,2]
[361600538,1747632664367,-400.0,0.00013808,2]
[361600539,1747632664379,-3535.87414965,0.00013808,2]
[361600540,1747632664650,-320.45370907,0.00013808,2]
[361600541,1747632664667,-1007.0,0.00013808,2]
[361600542,1747632664704,-2849.33147438,0.00013808,2]
[361600543,1747632664726,-932.73566492,0.00013808,2]
[361600544,1747632665424,-256.23036906,0.00013698,2]
[361600545,1747632665465,-400.0,0.00013698,2]
[361600546,1747632665480,-400.0,0.00013698,2]
[361600547,1747632665496,-133.73963094,0.00013808,2]
[361600548,1747632665587,-691.11537104,0.00013808,2]
[361600549,1747632665602,-400.0,0.00013808,2]
[361600550,1747632665617,-2838.85,0.00013808,2]
[361600551,1747632665634,-151.0,0.00013808,2]
[361600552,1747632665648,-151.0,0.00013808,2]
[361600553,1747632665664,-151.0,0.00013808,2]
[361600554,1747632665684,-208.228978,0.00013808,2]
[361600555,1747632665699,-400.0,0.00013808,2]
[361600556,1747632665714,-1151.69,0.00013808,2]
[361600557,1747632665728,-501.49781668,0.00013808,2]
[361600558,1747632665743,-424.3,0.00013808,2]
[361600559,1747632665758,-400.0,0.00013808,2]
[361600560,1747632665773,-1212.3,0.00013808,2]
[361600561,1747632665787,-400.0,0.00013808,2]
[361600562,1747632665802,-710.59,0.00013808,2]
[361600563,1747632665816,-379.58648246,0.00013808,2]
[361600564,1747632665832,-4485.59,0.00013808,2]
[361600565,1747632665846,-15646.84,0.00013808,2]
[361600566,1747632665861,-400.0,0.00013808,2]
[361600567,1747632665875,-400.0,0.00013808,2]
[361600568,1747632665888,-400.0,0.00013808,2]
[361600569,1747632665902,-785.81,0.00013808,2]
[361600570,1747632665917,-400.0,0.00013808,2]
[361600571,1747632665938,-400.0,0.00013808,2]
[361600572,1747632665953,-3586.49,0.00013808,2]
[361600573,1747632665968,-400.0,0.00013808,2]
[361600574,1747632665982,-400.0,0.00013808,2]
[361600575,1747632665997,-400.0,0.00013808,2]
[361600576,1747632666012,-810.39,0.00013808,2]
[361600577,1747632666026,-4588.42,0.00013808,2]
[361600578,1747632666040,-400.0,0.00013808,2]
[361600579,1747632666053,-581.89,0.00013808,2]
[361600580,1747632666068,-2560.91,0.00013808,2]
[361600581,1747632666081,-5128.33,0.00013808,2]
[361600582,1747632666097,-1760.14,0.00013808,2]
[361600583,1747632666110,-400.0,0.00013808,2]
[361600584,1747632666123,-1251.2,0.00013808,2]
[361600585,1747632666137,-1180.95,0.00013808,2]
[361600586,1747632666152,-2437.72,0.00013808,2]
[361600587,1747632666166,-1167.4,0.00013808,2]
[361600588,1747632666183,-699.65,0.00013808,2]
[361600589,1747632666197,-400.0,0.00013808,2]
[361600590,1747632666211,-502.768606,0.00013808,2]
[361600591,1747632666224,-400.0,0.00013808,2]
[361600592,1747632666238,-502.768606,0.00013808,2]
[361600593,1747632666254,-1336.96,0.00013808,2]
[361600594,1747632666273,-502.768606,0.00013808,2]
[361600595,1747632666287,-502.768606,0.00013808,2]
[361600596,1747632666301,-151.0,0.00013808,2]
[361600597,1747632666318,-151.0,0.00013808,2]
[361600598,1747632666331,-400.0,0.00013808,2]
[361600599,1747632666344,-151.0,0.00013808,2]
[361600600,1747632666564,-151.0,0.00013808,2]
[361600601,1747632666579,-457.32,0.00013808,2]
[361600602,1747632666593,-1000.0,0.00013808,2]
[361600603,1747632666608,-502.768606,0.00013808,2]
[361600604,1747632666622,-524.16,0.00013808,2]
[361600605,1747632666636,-502.768606,0.00013808,2]
[361600606,1747632666651,-502.768606,0.00013808,2]
[361600607,1747632666664,-420.77,0.00013808,2]
[361600608,1747632666681,-502.768606,0.00013808,2]
[361600609,1747632666694,-446.88547228,0.00013808,2]
[361600610,1747632666708,-400.0,0.00013808,2]
[361600611,1747632666721,-1029.83,0.00013808,2]
[361600612,1747632666735,-151.0,0.00013808,2]
[361600613,1747632666747,-151.0,0.00013808,2]
[361600614,1747632666761,-151.0,0.00013808,2]
[361600615,1747632666774,-151.0,0.00013808,2]
[361600616,1747632666787,-785.36,0.00013808,2]
[361600617,1747632666801,-1595.12,0.00013808,2]
[361600618,1747632666814,-400.0,0.00013808,2]
[361600619,1747632666828,-2572.53,0.00013808,2]
[361600620,1747632666842,-400.0,0.00013808,2]
[361600621,1747632666855,-400.0,0.00013808,2]
[361600622,1747632666869,-400.0,0.00013808,2]
[361600623,1747632666881,-2042.63569358,0.00013808,2]
[361600624,1747632666899,-1720.10430642,0.00013808,2]
[361600625,1747632666912,-495.14,0.00013808,2]
[361600626,1747632666928,-649.54,0.00013808,2]
[361600627,1747632666945,-2270.79,0.00013808,2]
[361600628,1747632666959,-400.0,0.00013808,2]
[361600629,1747632666972,-799.61,0.00013808,2]
[361600630,1747632666985,-3078.8,0.00013808,2]
[361600631,1747632666997,-400.0,0.00013808,2]
[361600632,1747632667010,-400.0,0.00013808,2]
[361600633,1747632667023,-400.0,0.00013808,2]
[361600634,1747632667036,-654.51,0.00013808,2]
[361600635,1747632667049,-608.48,0.00013808,2]
[361600636,1747632667061,-1341.18,0.00013808,2]
[361600637,1747632667075,-525.82824221,0.00013808,2]
[361600638,1747632667087,-400.0,0.00013808,2]
[361600639,1747632667100,-400.0,0.00013808,2]
[361600640,1747632667111,-1953.4,0.00013808,2]
[361600641,1747632667124,-250.13084973,0.00013808,2]
[361600642,1747632667136,-1004.79,0.00013808,2]
[361600643,1747632667149,-326.29246242,0.00013808,2]
[361600644,1747632667161,-2322.19,0.00013808,2]
[361600645,1747632667174,-400.0,0.00013808,2]
[361600646,1747632667194,-400.0,0.00013808,2]
[361600647,1747632667206,-983.85,0.00013808,2]
[361600648,1747632667219,-3985.32726062,0.00013808,2]
[361600649,1747632667236,-4141.92273938,0.00013808,2]
[361600650,1747632667248,-1382.98,0.00013808,2]
[361600651,1747632667265,-400.0,0.00013808,2]
[361600652,1747632667279,-400.0,0.00013808,2]
[361600653,1747632667293,-1893.05,0.00013808,2]
[361600654,1747632667307,-202.30416214,0.00013808,2]
[361600655,1747632667477,-569.09583786,0.00013808,2]
[361600656,1747632667490,-400.0,0.00013808,2]
[361600657,1747632667502,-467.98,0.00013808,2]
[361600658,1747632667515,-487.85,0.00013808,2]
[361600659,1747632667528,-1111.0,0.00013808,2]
[361600660,1747632667541,-666.73,0.00013808,2]
[361600661,1747632667553,-623.32,0.00013808,2]
[361600662,1747632667565,-181.42,0.00013808,2]
[361600663,1747632667578,-151.0,0.00013808,2]